[Event "Titled Tuesday Blitz May 23 Late 2023"]
[White "Semenenko, Dmytry"]
[Black "Melikyan, Gnel"]
[WhiteFideId "14118645"]
[BlackFideId "54109990"]
[WhiteElo "2113"]
[BlackElo "2138"]
[Result "0-1"]
[Round "01"]
[TimeControl "180+2"]
[Date "2023.05.23"]
[WhiteClock "0:00:26"]
[BlackClock "0:01:32"]

1. Nf3 {[%clk 0:02:59]}  Nf6 {[%clk 0:02:57]} 2. c4 {[%clk 0:02:58]}  b6 {[%clk 0:02:57]} 3. d4 {[%clk 0:02:57]}  Bb7 {[%clk 0:02:57]} 4. g3 {[%clk 0:02:56]}  e6 {[%clk 0:02:57]} 5. Bg2 {[%clk 0:02:56]}  Be7 {[%clk 0:02:58]} 6. O-O {[%clk 0:02:56]}  O-O {[%clk 0:02:58]} 7. Nc3 {[%clk 0:02:56]}  d5 {[%clk 0:02:58]} 8. Ne5 {[%clk 0:02:54]}  Nbd7 {[%clk 0:02:58]} 9. f4 {[%clk 0:02:52]}  c6 {[%clk 0:02:47]} 10. e4 {[%clk 0:02:49]}  Nxe5 {[%clk 0:02:42]} 11. fxe5 {[%clk 0:02:48]}  Nxe4 {[%clk 0:02:43]} 12. Nxe4 {[%clk 0:02:48]}  dxe4 {[%clk 0:02:43]} 13. Bxe4 {[%clk 0:02:48]}  Qd7 {[%clk 0:02:40]} 14. Be3 {[%clk 0:02:47]}  Rad8 {[%clk 0:02:38]} 15. Qh5 {[%clk 0:02:39]}  g6 {[%clk 0:02:36]} 16. Qh6 {[%clk 0:02:36]}  c5 {[%clk 0:02:34]} 17. d5 {[%clk 0:02:25]}  exd5 {[%clk 0:02:34]} 18. cxd5 {[%clk 0:02:25]}  Bxd5 {[%clk 0:02:33]} 19. Rad1 {[%clk 0:02:24]}  Qe6 {[%clk 0:02:32]} 20. Rf6 {[%clk 0:01:48]}  Qxe5 {[%clk 0:01:54]} 21. Bxd5 {[%clk 0:01:02]}  Bxf6 {[%clk 0:01:45]} 22. Bf4 {[%clk 0:00:57]}  Qxb2 {[%clk 0:01:34]} 23. Bc7 {[%clk 0:00:32]}  Bd4+ {[%clk 0:01:32]} 24. Kh1 {[%clk 0:00:26]}  Rxd5 {[%clk 0:01:32]} 0-1


[Site "https://www.chess.com"]

[Event "Titled Tuesday Blitz May 23 Late 2023"]
[White "Lalanne, Pablo"]
[Black "Fishbein, Alexander"]
[WhiteFideId "112151"]
[BlackFideId "2000377"]
[WhiteElo "2120"]
[BlackElo "2415"]
[Result "0-1"]
[Round "01"]
[TimeControl "180+2"]
[Date "2023.05.23"]
[WhiteClock "0:00:05"]
[BlackClock "0:00:31"]

1. e4 {[%clk 0:03:00]}  c5 {[%clk 0:02:54]} 2. Nf3 {[%clk 0:02:59]}  d6 {[%clk 0:02:54]} 3. d4 {[%clk 0:02:59]}  cxd4 {[%clk 0:02:54]} 4. Nxd4 {[%clk 0:03:00]}  Nf6 {[%clk 0:02:53]} 5. Nc3 {[%clk 0:03:01]}  Nc6 {[%clk 0:02:53]} 6. Bc4 {[%clk 0:03:00]}  e6 {[%clk 0:02:53]} 7. Bb3 {[%clk 0:03:00]}  Be7 {[%clk 0:02:52]} 8. Be3 {[%clk 0:03:00]}  a6 {[%clk 0:02:52]} 9. Qe2 {[%clk 0:02:59]}  Qc7 {[%clk 0:02:52]} 10. O-O-O {[%clk 0:02:59]}  Na5 {[%clk 0:02:52]} 11. g4 {[%clk 0:02:49]}  b5 {[%clk 0:02:52]} 12. g5 {[%clk 0:02:50]}  Nxb3+ {[%clk 0:02:52]} 13. axb3 {[%clk 0:02:49]}  Nd7 {[%clk 0:02:53]} 14. f4 {[%clk 0:02:38]}  b4 {[%clk 0:02:52]} 15. Na4 {[%clk 0:02:28]}  Nc5 {[%clk 0:02:51]} 16. Kb1 {[%clk 0:01:32]}  Bb7 {[%clk 0:02:47]} 17. Bd2 {[%clk 0:01:06]}  Nxe4 {[%clk 0:02:46]} 18. Bxb4 {[%clk 0:01:02]}  O-O {[%clk 0:02:33]} 19. Rhg1 {[%clk 0:00:55]}  Rfc8 {[%clk 0:02:32]} 20. h4 {[%clk 0:00:40]}  a5 {[%clk 0:02:29]} 21. Ba3 {[%clk 0:00:31]}  Bf8 {[%clk 0:02:15]} 22. f5 {[%clk 0:00:26]}  e5 {[%clk 0:02:14]} 23. Nb5 {[%clk 0:00:20]}  Qc6 {[%clk 0:02:11]} 24. Nbc3 {[%clk 0:00:20]}  Nxc3+ {[%clk 0:02:04]} 25. Nxc3 {[%clk 0:00:19]}  a4 {[%clk 0:01:44]} 26. b4 {[%clk 0:00:18]}  Qc4 {[%clk 0:01:33]} 27. Qd2 {[%clk 0:00:14]}  d5 {[%clk 0:01:28]} 28. g6 {[%clk 0:00:13]}  d4 {[%clk 0:01:25]} 29. Ne2 {[%clk 0:00:11]}  Bd5 {[%clk 0:01:23]} 30. Nc1 {[%clk 0:00:09]}  Be4 {[%clk 0:01:23]} 31. gxf7+ {[%clk 0:00:09]}  Qxf7 {[%clk 0:01:22]} 32. Nd3 {[%clk 0:00:09]}  Bxf5 {[%clk 0:01:04]} 33. Nxe5 {[%clk 0:00:07]}  Qd5 {[%clk 0:01:03]} 34. Nd3 {[%clk 0:00:06]}  Be6 {[%clk 0:01:02]} 35. Nc1 {[%clk 0:00:05]}  Bf5 {[%clk 0:00:51]} 36. Qxd4 {[%clk 0:00:05]}  Bxc2+ {[%clk 0:00:50]} 37. Ka1 {[%clk 0:00:05]}  Qxd4 {[%clk 0:00:44]} 38. Rxd4 {[%clk 0:00:06]}  Be7 {[%clk 0:00:41]} 39. h5 {[%clk 0:00:06]}  Bf6 {[%clk 0:00:41]} 40. Rf4 {[%clk 0:00:06]}  Be5 {[%clk 0:00:38]} 41. Rf2 {[%clk 0:00:05]}  Bd4 {[%clk 0:00:37]} 42. Rfg2 {[%clk 0:00:04]}  Bxg1 {[%clk 0:00:36]} 43. Rxg1 {[%clk 0:00:05]}  Rd8 {[%clk 0:00:34]} 44. Ne2 {[%clk 0:00:05]}  Rd1+ {[%clk 0:00:33]} 45. Rxd1 {[%clk 0:00:06]}  Bxd1 {[%clk 0:00:33]} 46. Nc3 {[%clk 0:00:07]}  Bxh5 {[%clk 0:00:33]} 47. b5 {[%clk 0:00:07]}  Bf3 {[%clk 0:00:33]} 48. Bc5 {[%clk 0:00:07]}  h5 {[%clk 0:00:32]} 49. b6 {[%clk 0:00:05]}  h4 {[%clk 0:00:31]} 0-1


[Site "https://www.chess.com"]

[Event "Titled Tuesday Blitz May 23 Late 2023"]
[White "rikchessmx"]
[Black "Suder, Jakub"]
[BlackFideId "1195310"]
[WhiteElo "2281"]
[BlackElo "2287"]
[Result "1-0"]
[Round "01"]
[TimeControl "180+2"]
[Date "2023.05.23"]
[WhiteClock "0:00:54"]
[BlackClock "0:00:00"]

1. e4 {[%clk 0:02:56]}  c5 {[%clk 0:02:59]} 2. Nf3 {[%clk 0:02:56]}  e6 {[%clk 0:02:59]} 3. d4 {[%clk 0:02:56]}  cxd4 {[%clk 0:02:59]} 4. Nxd4 {[%clk 0:02:57]}  Nc6 {[%clk 0:02:52]} 5. Nc3 {[%clk 0:02:55]}  Nf6 {[%clk 0:02:51]} 6. Nxc6 {[%clk 0:02:55]}  bxc6 {[%clk 0:02:48]} 7. Bd3 {[%clk 0:02:56]}  e5 {[%clk 0:02:45]} 8. O-O {[%clk 0:02:55]}  d6 {[%clk 0:02:45]} 9. f4 {[%clk 0:02:55]}  Be7 {[%clk 0:02:42]} 10. Kh1 {[%clk 0:02:54]}  O-O {[%clk 0:02:42]} 11. Qf3 {[%clk 0:02:52]}  Nd7 {[%clk 0:02:34]} 12. f5 {[%clk 0:02:51]}  Bg5 {[%clk 0:02:30]} 13. Qg3 {[%clk 0:02:47]}  Bxc1 {[%clk 0:02:30]} 14. Raxc1 {[%clk 0:02:47]}  Kh8 {[%clk 0:02:20]} 15. Rf3 {[%clk 0:02:43]}  Bb7 {[%clk 0:02:13]} 16. Rcf1 {[%clk 0:02:42]}  Qf6 {[%clk 0:02:10]} 17. Qh3 {[%clk 0:02:41]}  d5 {[%clk 0:02:06]} 18. g4 {[%clk 0:02:41]}  d4 {[%clk 0:01:41]} 19. Ne2 {[%clk 0:02:39]}  c5 {[%clk 0:01:41]} 20. b3 {[%clk 0:02:38]}  c4 {[%clk 0:01:38]} 21. bxc4 {[%clk 0:02:38]}  Nc5 {[%clk 0:01:39]} 22. Ng3 {[%clk 0:02:37]}  Rab8 {[%clk 0:01:19]} 23. Re1 {[%clk 0:02:36]}  Qg5 {[%clk 0:01:13]} 24. Rf2 {[%clk 0:02:26]}  Bc6 {[%clk 0:01:07]} 25. Nh5 {[%clk 0:02:24]}  Rb2 {[%clk 0:00:55]} 26. Qg3 {[%clk 0:02:23]}  Rfb8 {[%clk 0:00:50]} 27. Qxe5 {[%clk 0:02:17]}  Nxd3 {[%clk 0:00:39]} 28. cxd3 {[%clk 0:02:00]}  Re8 {[%clk 0:00:30]} 29. Qxd4 {[%clk 0:01:55]}  Rxf2 {[%clk 0:00:26]} 30. Qxf2 {[%clk 0:01:54]}  Qxg4 {[%clk 0:00:26]} 31. Ng3 {[%clk 0:01:52]}  h5 {[%clk 0:00:23]} 32. Qe2 {[%clk 0:01:48]}  Qf4 {[%clk 0:00:18]} 33. Nxh5 {[%clk 0:01:42]}  Qxf5 {[%clk 0:00:17]} 34. Kg1 {[%clk 0:01:27]}  Qg5+ {[%clk 0:00:14]} 35. Ng3 {[%clk 0:01:26]}  Kg8 {[%clk 0:00:12]} 36. Qe3 {[%clk 0:01:25]}  Qf6 {[%clk 0:00:11]} 37. Qxa7 {[%clk 0:01:22]}  Ra8 {[%clk 0:00:10]} 38. Qf2 {[%clk 0:01:16]}  Qc3 {[%clk 0:00:04]} 39. Re3 {[%clk 0:01:06]}  Bd7 {[%clk 0:00:03]} 40. Kg2 {[%clk 0:01:05]}  Rb8 {[%clk 0:00:02]} 41. Rf3 {[%clk 0:01:03]}  Be6 {[%clk 0:00:02]} 42. Nf5 {[%clk 0:01:03]}  Rb1 {[%clk 0:00:02]} 43. Rg3 {[%clk 0:01:00]}  g6 {[%clk 0:00:02]} 44. Nd4 {[%clk 0:00:58]}  Bd7 {[%clk 0:00:01]} 45. e5 {[%clk 0:00:55]}  Qa1 {[%clk 0:00:00]} 46. e6 {[%clk 0:00:54]} 1-0


[Site "https://www.chess.com"]

[Event "Titled Tuesday Blitz May 23 Late 2023"]
[White "Tomiello, Mateus Costamilan"]
[Black "Pace, Christopher"]
[WhiteFideId "22701958"]
[BlackFideId "2610167"]
[WhiteElo "1990"]
[BlackElo "2276"]
[Result "1-0"]
[Round "01"]
[TimeControl "180+2"]
[Date "2023.05.23"]
[WhiteClock "0:00:14"]
[BlackClock "0:00:04"]

1. e4 {[%clk 0:03:00]}  e5 {[%clk 0:02:56]} 2. Nf3 {[%clk 0:03:01]}  Nc6 {[%clk 0:02:49]} 3. Bb5 {[%clk 0:03:00]}  Nge7 {[%clk 0:02:43]} 4. c3 {[%clk 0:02:58]}  g6 {[%clk 0:02:23]} 5. O-O {[%clk 0:02:54]}  Bg7 {[%clk 0:02:23]} 6. d4 {[%clk 0:02:54]}  exd4 {[%clk 0:02:20]} 7. cxd4 {[%clk 0:02:51]}  d5 {[%clk 0:02:20]} 8. exd5 {[%clk 0:02:46]}  Nxd5 {[%clk 0:02:20]} 9. Re1+ {[%clk 0:02:43]}  Ne7 {[%clk 0:02:10]} 10. d5 {[%clk 0:02:24]}  a6 {[%clk 0:02:10]} 11. Ba4 {[%clk 0:02:18]}  b5 {[%clk 0:02:10]} 12. Bb3 {[%clk 0:02:19]}  Na5 {[%clk 0:02:07]} 13. Bg5 {[%clk 0:02:17]}  f6 {[%clk 0:02:07]} 14. Bf4 {[%clk 0:02:09]}  Nxb3 {[%clk 0:02:07]} 15. Qxb3 {[%clk 0:02:07]}  Kf8 {[%clk 0:01:53]} 16. Nc3 {[%clk 0:02:05]}  Bb7 {[%clk 0:01:51]} 17. Rad1 {[%clk 0:01:51]}  Nf5 {[%clk 0:00:59]} 18. Ne4 {[%clk 0:01:05]}  g5 {[%clk 0:00:32]} 19. Bxg5 {[%clk 0:00:43]}  fxg5 {[%clk 0:00:32]} 20. Nfxg5 {[%clk 0:00:43]}  Bc8 {[%clk 0:00:28]} 21. d6 {[%clk 0:00:30]}  Nh6 {[%clk 0:00:20]} 22. Re3 {[%clk 0:00:20]}  Bf5 {[%clk 0:00:11]} 23. Rf3 {[%clk 0:00:18]}  Qd7 {[%clk 0:00:12]} 24. Nc5 {[%clk 0:00:16]}  Qc6 {[%clk 0:00:04]} 25. Rxf5+ {[%clk 0:00:14]} 1-0


[Site "https://www.chess.com"]

[Event "Titled Tuesday Blitz May 23 Late 2023"]
[White "Bach, Matthias"]
[Black "Principe, Gerson"]
[WhiteFideId "4603168"]
[BlackFideId "3804550"]
[WhiteElo "2130"]
[BlackElo "2229"]
[Result "1-0"]
[Round "01"]
[TimeControl "180+2"]
[Date "2023.05.23"]
[WhiteClock "0:00:52"]
[BlackClock "0:00:09"]

1. d4 {[%clk 0:02:57]}  Nf6 {[%clk 0:02:59]} 2. c4 {[%clk 0:02:57]}  e6 {[%clk 0:03:00]} 3. Nc3 {[%clk 0:02:57]}  Bb4 {[%clk 0:03:00]} 4. Bg5 {[%clk 0:02:57]}  d5 {[%clk 0:02:59]} 5. e3 {[%clk 0:02:56]}  c5 {[%clk 0:02:57]} 6. cxd5 {[%clk 0:02:55]}  exd5 {[%clk 0:02:35]} 7. Bb5+ {[%clk 0:02:54]}  Bd7 {[%clk 0:02:32]} 8. Bxd7+ {[%clk 0:02:53]}  Nbxd7 {[%clk 0:02:33]} 9. Ne2 {[%clk 0:02:52]}  Qa5 {[%clk 0:02:33]} 10. O-O {[%clk 0:02:49]}  Bxc3 {[%clk 0:02:32]} 11. Nxc3 {[%clk 0:02:43]}  O-O {[%clk 0:02:30]} 12. dxc5 {[%clk 0:02:40]}  Qxc5 {[%clk 0:02:27]} 13. Qd4 {[%clk 0:02:38]}  Qxd4 {[%clk 0:02:23]} 14. exd4 {[%clk 0:02:37]}  Ne4 {[%clk 0:02:20]} 15. Nxe4 {[%clk 0:02:32]}  dxe4 {[%clk 0:02:21]} 16. Rac1 {[%clk 0:02:27]}  Rac8 {[%clk 0:02:21]} 17. d5 {[%clk 0:02:05]}  f5 {[%clk 0:02:18]} 18. Be7 {[%clk 0:01:59]}  Rfe8 {[%clk 0:02:18]} 19. d6 {[%clk 0:01:58]}  Kf7 {[%clk 0:02:15]} 20. f3 {[%clk 0:01:59]}  exf3 {[%clk 0:02:11]} 21. Rxc8 {[%clk 0:01:50]}  Rxc8 {[%clk 0:02:10]} 22. Rxf3 {[%clk 0:01:50]}  g6 {[%clk 0:02:04]} 23. g4 {[%clk 0:01:49]}  Ke6 {[%clk 0:01:44]} 24. Re3+ {[%clk 0:01:47]}  Kd5 {[%clk 0:01:42]} 25. gxf5 {[%clk 0:01:46]}  gxf5 {[%clk 0:01:43]} 26. Rh3 {[%clk 0:01:43]}  Ke4 {[%clk 0:01:12]} 27. Rxh7 {[%clk 0:01:37]}  Ne5 {[%clk 0:01:12]} 28. Bf6 {[%clk 0:01:22]}  Rc1+ {[%clk 0:00:35]} 29. Kg2 {[%clk 0:01:20]}  Ng4 {[%clk 0:00:21]} 30. d7 {[%clk 0:01:14]}  Kf4 {[%clk 0:00:14]} 31. d8=Q {[%clk 0:00:52]}  Rb1 {[%clk 0:00:09]} 1-0


[Site "https://www.chess.com"]

[Event "Titled Tuesday Blitz May 23 Late 2023"]
[White "Arabidze, Meri"]
[Black "Magallanes, Rey Jomar"]
[WhiteFideId "13604040"]
[BlackFideId "5205948"]
[WhiteElo "2405"]
[BlackElo "2274"]
[Result "1-0"]
[Round "01"]
[TimeControl "180+2"]
[Date "2023.05.23"]
[WhiteClock "0:01:51"]
[BlackClock "0:02:24"]

1. Nf3 {[%clk 0:02:57]}  d5 {[%clk 0:02:59]} 2. g3 {[%clk 0:02:54]}  Nf6 {[%clk 0:02:58]} 3. Bg2 {[%clk 0:02:54]}  g6 {[%clk 0:02:56]} 4. b3 {[%clk 0:02:52]}  Bg7 {[%clk 0:02:57]} 5. Bb2 {[%clk 0:02:53]}  O-O {[%clk 0:02:56]} 6. c4 {[%clk 0:02:53]}  c6 {[%clk 0:02:56]} 7. O-O {[%clk 0:02:53]}  Nbd7 {[%clk 0:02:56]} 8. d3 {[%clk 0:02:53]}  Re8 {[%clk 0:02:56]} 9. Nbd2 {[%clk 0:02:45]}  e5 {[%clk 0:02:56]} 10. cxd5 {[%clk 0:02:44]}  cxd5 {[%clk 0:02:57]} 11. e4 {[%clk 0:02:44]}  dxe4 {[%clk 0:02:54]} 12. dxe4 {[%clk 0:02:42]}  b6 {[%clk 0:02:53]} 13. Nc4 {[%clk 0:02:34]}  Bb7 {[%clk 0:02:51]} 14. Nd6 {[%clk 0:02:33]}  Bc6 {[%clk 0:02:48]} 15. Nxe8 {[%clk 0:02:33]}  Qxe8 {[%clk 0:02:48]} 16. Nd2 {[%clk 0:02:30]}  Rd8 {[%clk 0:02:47]} 17. Qc2 {[%clk 0:02:21]}  Bb7 {[%clk 0:02:46]} 18. Rac1 {[%clk 0:02:20]}  Nc5 {[%clk 0:02:46]} 19. Ba3 {[%clk 0:02:08]}  Nd3 {[%clk 0:02:44]} 20. Rcd1 {[%clk 0:02:06]}  Ng4 {[%clk 0:02:40]} 21. Nc4 {[%clk 0:02:01]}  Nc5 {[%clk 0:02:31]} 22. Nd6 {[%clk 0:01:57]}  Qc6 {[%clk 0:02:29]} 23. Nxb7 {[%clk 0:01:52]}  Qxb7 {[%clk 0:02:24]} 24. Rxd8+ {[%clk 0:01:51]} 1-0


[Site "https://www.chess.com"]

[Event "Titled Tuesday Blitz May 23 Late 2023"]
[White "Harish, Neeraj"]
[Black "Kiremitciyan, Ari"]
[WhiteFideId "30958130"]
[BlackFideId "6373445"]
[WhiteElo "1879"]
[BlackElo "2181"]
[Result "0-1"]
[Round "01"]
[TimeControl "180+2"]
[Date "2023.05.23"]
[WhiteClock "0:00:16"]
[BlackClock "0:01:16"]

1. e4 {[%clk 0:02:59]}  e5 {[%clk 0:02:59]} 2. Nf3 {[%clk 0:02:58]}  Nc6 {[%clk 0:02:59]} 3. Bc4 {[%clk 0:02:53]}  g6 {[%clk 0:02:59]} 4. O-O {[%clk 0:02:29]}  Bg7 {[%clk 0:02:59]} 5. c3 {[%clk 0:02:29]}  d6 {[%clk 0:02:58]} 6. h3 {[%clk 0:02:26]}  Nge7 {[%clk 0:02:57]} 7. d4 {[%clk 0:02:25]}  O-O {[%clk 0:02:54]} 8. Na3 {[%clk 0:02:16]}  exd4 {[%clk 0:02:53]} 9. cxd4 {[%clk 0:02:16]}  d5 {[%clk 0:02:53]} 10. exd5 {[%clk 0:02:15]}  Nxd5 {[%clk 0:02:54]} 11. Nc2 {[%clk 0:02:10]}  Nb6 {[%clk 0:02:45]} 12. Be2 {[%clk 0:01:47]}  h6 {[%clk 0:02:39]} 13. Bf4 {[%clk 0:01:42]}  Nd5 {[%clk 0:02:37]} 14. Bh2 {[%clk 0:01:34]}  Re8 {[%clk 0:02:37]} 15. Qd2 {[%clk 0:01:26]}  Bf5 {[%clk 0:02:16]} 16. Rad1 {[%clk 0:00:51]}  Be4 {[%clk 0:01:40]} 17. Rfe1 {[%clk 0:00:40]}  Qd7 {[%clk 0:01:32]} 18. Ne3 {[%clk 0:00:34]}  Rad8 {[%clk 0:01:28]} 19. Nxd5 {[%clk 0:00:27]}  Bxd5 {[%clk 0:01:29]} 20. b3 {[%clk 0:00:22]}  Bxf3 {[%clk 0:01:17]} 21. Bxf3 {[%clk 0:00:21]}  Rxe1+ {[%clk 0:01:17]} 22. Rxe1 {[%clk 0:00:19]}  Nxd4 {[%clk 0:01:17]} 23. Be4 {[%clk 0:00:16]}  Nf3+ {[%clk 0:01:16]} 0-1


[Site "https://www.chess.com"]

[Event "Titled Tuesday Blitz May 23 Late 2023"]
[White "Sourath Biswas"]
[Black "SalihEke"]
[WhiteFideId "35091484"]
[WhiteElo "2171"]
[BlackElo "2270"]
[Result "1-0"]
[Round "01"]
[TimeControl "180+2"]
[Date "2023.05.23"]
[WhiteClock "0:01:57"]
[BlackClock "0:00:00"]

1. d4 {[%clk 0:03:00]}  d5 {[%clk 0:02:58]} 2. Bf4 {[%clk 0:02:59]}  Nf6 {[%clk 0:02:55]} 3. e3 {[%clk 0:03:00]}  c5 {[%clk 0:02:53]} 4. Nf3 {[%clk 0:03:00]}  Nc6 {[%clk 0:02:53]} 5. Nbd2 {[%clk 0:03:00]}  Bf5 {[%clk 0:02:51]} 6. dxc5 {[%clk 0:03:00]}  e6 {[%clk 0:02:49]} 7. Nd4 {[%clk 0:03:00]}  Bxc5 {[%clk 0:02:29]} 8. Nxf5 {[%clk 0:03:00]}  exf5 {[%clk 0:02:30]} 9. c3 {[%clk 0:03:00]}  O-O {[%clk 0:02:29]} 10. Be2 {[%clk 0:03:00]}  Ne4 {[%clk 0:02:28]} 11. Nxe4 {[%clk 0:02:50]}  fxe4 {[%clk 0:02:19]} 12. Qb3 {[%clk 0:02:48]}  Na5 {[%clk 0:01:46]} 13. Qa4 {[%clk 0:02:40]}  Nc6 {[%clk 0:01:17]} 14. Rd1 {[%clk 0:02:31]}  Rc8 {[%clk 0:00:46]} 15. O-O {[%clk 0:02:27]}  Ne7 {[%clk 0:00:42]} 16. c4 {[%clk 0:02:03]}  d4 {[%clk 0:00:01]} 17. exd4 {[%clk 0:02:02]}  Bxd4 {[%clk 0:00:00]} 18. c5 {[%clk 0:01:57]} 1-0


[Site "https://www.chess.com"]

[Event "Titled Tuesday Blitz May 23 Late 2023"]
[White "Hernandez Leon, Alberto"]
[Black "Bagrationi, Alexander"]
[WhiteFideId "2272555"]
[BlackFideId "14104954"]
[WhiteElo "2239"]
[BlackElo "2398"]
[Result "1/2-1/2"]
[Round "01"]
[TimeControl "180+2"]
[Date "2023.05.23"]
[WhiteClock "0:00:11"]
[BlackClock "0:01:23"]

1. d4 {[%clk 0:02:59]}  Nf6 {[%clk 0:02:57]} 2. c4 {[%clk 0:02:59]}  c5 {[%clk 0:02:58]} 3. d5 {[%clk 0:02:59]}  g6 {[%clk 0:02:58]} 4. Nc3 {[%clk 0:02:59]}  Bg7 {[%clk 0:02:58]} 5. e4 {[%clk 0:02:58]}  d6 {[%clk 0:02:56]} 6. Bd3 {[%clk 0:02:55]}  O-O {[%clk 0:02:48]} 7. h3 {[%clk 0:02:42]}  Na6 {[%clk 0:02:47]} 8. Nf3 {[%clk 0:02:41]}  Nc7 {[%clk 0:02:48]} 9. a4 {[%clk 0:02:40]}  a6 {[%clk 0:02:48]} 10. O-O {[%clk 0:02:39]}  e6 {[%clk 0:02:48]} 11. Bf4 {[%clk 0:02:37]}  Re8 {[%clk 0:02:49]} 12. e5 {[%clk 0:02:26]}  Nh5 {[%clk 0:02:32]} 13. Bg5 {[%clk 0:02:19]}  f6 {[%clk 0:02:20]} 14. exf6 {[%clk 0:02:09]}  Bxf6 {[%clk 0:02:20]} 15. Bxf6 {[%clk 0:02:04]}  Nxf6 {[%clk 0:02:19]} 16. Qc2 {[%clk 0:01:49]}  Kg7 {[%clk 0:02:07]} 17. dxe6 {[%clk 0:01:36]}  Bxe6 {[%clk 0:01:53]} 18. Rad1 {[%clk 0:01:37]}  Bg8 {[%clk 0:01:42]} 19. Rfe1 {[%clk 0:01:21]}  Rxe1+ {[%clk 0:01:40]} 20. Rxe1 {[%clk 0:01:22]}  Ne6 {[%clk 0:01:41]} 21. Nd5 {[%clk 0:00:59]}  Nxd5 {[%clk 0:01:38]} 22. cxd5 {[%clk 0:01:00]}  Nf4 {[%clk 0:01:39]} 23. Qc3+ {[%clk 0:00:22]}  Qf6 {[%clk 0:01:38]} 24. Re7+ {[%clk 0:00:16]}  Bf7 {[%clk 0:01:38]} 25. Bc4 {[%clk 0:00:13]}  b5 {[%clk 0:01:35]} 26. axb5 {[%clk 0:00:09]}  axb5 {[%clk 0:01:35]} 27. Bxb5 {[%clk 0:00:09]}  Rb8 {[%clk 0:01:34]} 28. Bc4 {[%clk 0:00:06]}  Rxb2 {[%clk 0:01:32]} 29. Qxf6+ {[%clk 0:00:05]}  Kxf6 {[%clk 0:01:32]} 30. Re1 {[%clk 0:00:06]}  Bxd5 {[%clk 0:01:27]} 31. Bxd5 {[%clk 0:00:06]}  Nxd5 {[%clk 0:01:28]} 32. Rd1 {[%clk 0:00:07]}  Nf4 {[%clk 0:01:23]} 33. Rxd6+ {[%clk 0:00:07]}  Ke7 {[%clk 0:01:24]} 34. Rc6 {[%clk 0:00:07]}  Nd3 {[%clk 0:01:20]} 35. Ng5 {[%clk 0:00:05]}  Kd7 {[%clk 0:01:19]} 36. Rf6 {[%clk 0:00:04]}  c4 {[%clk 0:01:18]} 37. Ne4 {[%clk 0:00:04]}  Re2 {[%clk 0:01:15]} 38. Nc3 {[%clk 0:00:04]}  Re1+ {[%clk 0:01:14]} 39. Kh2 {[%clk 0:00:04]}  Rc1 {[%clk 0:01:14]} 40. Ne4 {[%clk 0:00:03]}  c3 {[%clk 0:01:14]} 41. Rd6+ {[%clk 0:00:03]}  Ke7 {[%clk 0:01:13]} 42. Rxd3 {[%clk 0:00:04]}  c2 {[%clk 0:01:14]} 43. Rc3 {[%clk 0:00:03]}  Re1 {[%clk 0:01:14]} 44. Rxc2 {[%clk 0:00:03]}  Rxe4 {[%clk 0:01:15]} 45. Rc3 {[%clk 0:00:04]}  Kf7 {[%clk 0:01:15]} 46. Kg3 {[%clk 0:00:04]}  Kg7 {[%clk 0:01:15]} 47. Rf3 {[%clk 0:00:05]}  Rb4 {[%clk 0:01:15]} 48. Ra3 {[%clk 0:00:06]}  h5 {[%clk 0:01:16]} 49. Ra7+ {[%clk 0:00:06]}  Kh6 {[%clk 0:01:16]} 50. Ra6 {[%clk 0:00:06]}  h4+ {[%clk 0:01:16]} 51. Kh2 {[%clk 0:00:05]}  Kg5 {[%clk 0:01:17]} 52. Ra5+ {[%clk 0:00:05]}  Kh6 {[%clk 0:01:18]} 53. Rd5 {[%clk 0:00:05]}  Rb2 {[%clk 0:01:18]} 54. f4 {[%clk 0:00:05]}  Rf2 {[%clk 0:01:18]} 55. Rd4 {[%clk 0:00:05]}  Kg7 {[%clk 0:01:18]} 56. f5 {[%clk 0:00:04]}  g5 {[%clk 0:01:19]} 57. Rd7+ {[%clk 0:00:03]}  Kf6 {[%clk 0:01:19]} 58. Rd8 {[%clk 0:00:04]}  Rb2 {[%clk 0:01:18]} 59. Rf8+ {[%clk 0:00:04]}  Kg7 {[%clk 0:01:18]} 60. Rc8 {[%clk 0:00:04]}  Rb5 {[%clk 0:01:17]} 61. Rc7+ {[%clk 0:00:03]}  Kf6 {[%clk 0:01:18]} 62. Rc6+ {[%clk 0:00:03]}  Kxf5 {[%clk 0:01:19]} 63. Rc3 {[%clk 0:00:04]}  Rb4 {[%clk 0:01:18]} 64. Rf3+ {[%clk 0:00:03]}  Ke4 {[%clk 0:01:19]} 65. Rf8 {[%clk 0:00:03]}  Rb6 {[%clk 0:01:19]} 66. Re8+ {[%clk 0:00:03]}  Kf5 {[%clk 0:01:19]} 67. Rf8+ {[%clk 0:00:03]}  Kg6 {[%clk 0:01:20]} 68. Rg8+ {[%clk 0:00:04]}  Kf5 {[%clk 0:01:20]} 69. Rc8 {[%clk 0:00:05]}  Rf6 {[%clk 0:01:19]} 70. Rc5+ {[%clk 0:00:05]}  Kg6 {[%clk 0:01:19]} 71. Rc3 {[%clk 0:00:06]}  Kh5 {[%clk 0:01:20]} 72. Rc5 {[%clk 0:00:06]}  Rd6 {[%clk 0:01:19]} 73. Ra5 {[%clk 0:00:06]}  Rd3 {[%clk 0:01:19]} 74. Rb5 {[%clk 0:00:06]}  Rd4 {[%clk 0:01:20]} 75. Ra5 {[%clk 0:00:06]}  Kh6 {[%clk 0:01:20]} 76. Rb5 {[%clk 0:00:06]}  g4 {[%clk 0:01:20]} 77. hxg4 {[%clk 0:00:06]}  Rxg4 {[%clk 0:01:20]} 78. Re5 {[%clk 0:00:07]}  Kg6 {[%clk 0:01:21]} 79. Rc5 {[%clk 0:00:07]}  Kf6 {[%clk 0:01:21]} 80. Rb5 {[%clk 0:00:07]}  Rd4 {[%clk 0:01:21]} 81. Ra5 {[%clk 0:00:08]}  Rc4 {[%clk 0:01:22]} 82. Rb5 {[%clk 0:00:08]}  Ke6 {[%clk 0:01:22]} 83. Kh3 {[%clk 0:00:08]}  Kf6 {[%clk 0:01:22]} 84. Rh5 {[%clk 0:00:08]}  Kg6 {[%clk 0:01:22]} 85. Rxh4 {[%clk 0:00:09]}  Rc1 {[%clk 0:01:22]} 86. Rg4+ {[%clk 0:00:08]}  Kh5 {[%clk 0:01:23]} 87. Ra4 {[%clk 0:00:08]}  Rc3+ {[%clk 0:01:23]} 88. g3 {[%clk 0:00:08]}  Rc5 {[%clk 0:01:23]} 89. Rb4 {[%clk 0:00:08]}  Kg5 {[%clk 0:01:24]} 90. Rh4 {[%clk 0:00:09]}  Rc1 {[%clk 0:01:24]} 91. Rg4+ {[%clk 0:00:09]}  Kh5 {[%clk 0:01:24]} 92. Ra4 {[%clk 0:00:10]}  Rh1+ {[%clk 0:01:23]} 93. Kg2 {[%clk 0:00:10]}  Rc1 {[%clk 0:01:22]} 94. Kf3 {[%clk 0:00:11]}  Rc3+ {[%clk 0:01:21]} 95. Kf4 {[%clk 0:00:11]}  Rc5 {[%clk 0:01:20]} 96. g4+ {[%clk 0:00:09]}  Kg6 {[%clk 0:01:20]} 97. Ra6+ {[%clk 0:00:08]}  Kg7 {[%clk 0:01:20]} 98. Rb6 {[%clk 0:00:09]}  Rc4+ {[%clk 0:01:20]} 99. Kf5 {[%clk 0:00:09]}  Rc5+ {[%clk 0:01:21]} 100. Kf4 {[%clk 0:00:09]}  Rc4+ {[%clk 0:01:22]} 101. Kg3 {[%clk 0:00:10]}  Rc3+ {[%clk 0:01:22]} 102. Kh4 {[%clk 0:00:10]}  Rc7 {[%clk 0:01:23]} 103. Kh5 {[%clk 0:00:09]}  Rc5+ {[%clk 0:01:23]} 104. g5 {[%clk 0:00:09]}  Rc7 {[%clk 0:01:23]} 105. Ra6 {[%clk 0:00:09]}  Rb7 {[%clk 0:01:24]} 106. Rg6+ {[%clk 0:00:10]}  Kh7 {[%clk 0:01:24]} 107. Rh6+ {[%clk 0:00:10]}  Kg7 {[%clk 0:01:24]} 108. Rd6 {[%clk 0:00:10]}  Ra7 {[%clk 0:01:23]} 109. Rc6 {[%clk 0:00:10]}  Rb7 {[%clk 0:01:23]} 110. Rg6+ {[%clk 0:00:11]}  Kh7 {[%clk 0:01:23]} 111. Rd6 {[%clk 0:00:11]}  Kg7 {[%clk 0:01:22]} 112. Kg4 {[%clk 0:00:11]}  Rb4+ {[%clk 0:01:22]} 113. Kf5 {[%clk 0:00:11]}  Rb5+ {[%clk 0:01:22]} 114. Kf4 {[%clk 0:00:11]}  Rb4+ {[%clk 0:01:23]} 115. Kf5 {[%clk 0:00:11]}  Rb5+ {[%clk 0:01:23]} 116. Kf4 {[%clk 0:00:11]}  Rb4+ {[%clk 0:01:23]} 117. Kf5 {[%clk 0:00:11]} 1/2-1/2


[Site "https://www.chess.com"]